bitfinex-derivatives/quotes_BTCF0:USTF0_20260131
["timestamp","ask_amount","ask_price","bid_price","bid_amount"]
[1769886824676,0.1185553,78218.0,78186.0,0.33724]
[1769886824677,0.1185553,78217.0,78191.0,0.27198743]
[1769886824879,0.1185553,78216.0,78191.0,0.27198743]
[1769886825078,0.1185553,78215.0,78191.0,0.27198743]
[1769886825274,0.1185553,78214.0,78191.0,0.27198743]
[1769886825579,0.1185553,78213.0,78191.0,0.27198743]
[1769886825778,0.2977574,78212.0,78185.0,0.0922]
[1769886825973,0.4163127,78211.0,78185.0,0.0922]
[1769886826168,0.2977574,78209.0,78185.0,0.0922]
[1769886826374,0.1185553,78208.0,78185.0,0.0922]
[1769886826773,0.2464358,78208.0,78185.0,0.0922]
[1769886827074,0.1185553,78207.0,78186.0,0.27198743]
[1769886827476,0.25248766,78228.0,78188.0,0.27198743]
[1769886827677,0.2977574,78231.0,78185.0,0.0922]
[1769886827678,0.11875369,78226.0,78190.0,0.27198743]
[1769886827974,0.11875369,78225.0,78192.0,0.27198743]
[1769886828278,0.33724,78229.0,78192.0,0.27198743]
[1769886828279,0.11875369,78224.0,78192.0,0.27198743]
[1769886828479,0.11875369,78223.0,78192.0,0.27198743]
[1769886828782,0.11875369,78222.0,78199.0,0.012806]
[1769886828980,0.11875369,78221.0,78200.0,0.0922]
[1769886829184,0.25248766,78242.0,78208.0,0.27198743]
[1769886829482,0.12786006,78230.0,78210.0,0.27198743]
[1769886829678,0.12786006,78230.0,78212.0,0.27198743]
[1769886829878,0.2977574,78249.0,78212.0,0.27198743]
[1769886830079,0.12786006,78229.0,78214.0,0.27198743]
[1769886830381,0.0922,78251.0,78216.0,0.27198743]
[1769886830783,0.12782738,78250.0,78216.0,0.27198743]
[1769886832483,0.12782738,78250.0,78218.0,0.27198743]
[1769886833186,0.12782738,78250.0,78222.0,0.27198743]
[1769886833985,0.25248766,78272.0,78240.0,0.012799]
[1769886834284,0.2977574,78281.0,78240.0,0.012799]
[1769886834285,0.2977574,78276.0,78242.0,0.27198743]
[1769886834479,0.12778572,78271.0,78241.0,0.42944]
[1769886834785,0.2977574,78271.0,78241.0,0.42944]
[1769886835381,0.2977574,78269.0,78241.0,0.42944]
[1769886835579,0.2977574,78266.0,78241.0,0.42944]
[1769886835778,0.2977574,78266.0,78241.0,0.0922]
[1769886835981,0.2977574,78266.0,78221.0,0.27198743]
[1769886835982,0.2977574,78264.0,78221.0,0.27198743]
[1769886836293,0.2977574,78261.0,78226.0,0.09216]
[1769886837282,0.2977574,78259.0,78226.0,0.09216]
[1769886837992,0.12780614,78258.0,78233.0,0.27198743]
[1769886838492,0.2977574,78257.0,78226.0,0.09216]
[1769886839193,0.12780287,78256.0,78232.0,0.27198743]
[1769886839389,0.12780287,78256.0,78237.0,0.27198743]
[1769886839588,0.09216,78263.0,78237.0,0.27198743]
[1769886839786,0.12780941,78262.0,78240.0,0.27198743]
[1769886839988,0.25248766,78284.0,78245.0,0.27198743]
[1769886840184,0.25248766,78289.0,78247.0,0.27198743]
[1769886840390,0.12780941,78278.0,78247.0,0.27198743]
[1769886840595,0.25248766,78290.0,78247.0,0.27198743]
[1769886840790,0.2977574,78289.0,78249.0,0.28478543]
[1769886841093,0.2977574,78282.0,78246.0,0.09216]
[1769886841297,0.2977574,78276.0,78246.0,0.09216]
[1769886841495,0.2977574,78271.0,78246.0,0.09216]
[1769886841691,0.2977574,78269.0,78246.0,0.09216]
[1769886841993,0.3105524,78267.0,78246.0,0.09216]
[1769886842289,0.2977574,78255.0,78233.0,0.09216]
[1769886842597,0.2977574,78248.0,78205.0,0.09216]
[1769886842895,0.2977574,78228.0,78205.0,0.09216]
[1769886843090,0.2977574,78226.0,78205.0,0.09216]
[1769886843397,0.2977574,78224.0,78205.0,0.09216]
[1769886843592,0.11508102,78223.0,78205.0,0.09216]
[1769886843993,0.11508102,78222.0,78205.0,0.09216]
[1769886844189,0.11508102,78221.0,78206.0,0.27198743]
[1769886844497,0.12785516,78221.0,78205.0,0.09216]
[1769886844699,0.09216,78232.0,78205.0,0.09216]
[1769886844891,0.11712714,78231.0,78205.0,0.09216]
[1769886845096,0.12785516,78220.0,78205.0,0.09216]
[1769886845296,0.09216,78232.0,78205.0,0.09216]
[1769886845489,0.1278478,78219.0,78205.0,0.09216]
[1769886845696,0.11713355,78218.0,78205.0,0.09216]
[1769886845997,0.11713355,78217.0,78205.0,0.09216]
[1769886846296,0.11713355,78216.0,78205.0,0.09216]
[1769886846492,0.11713355,78215.0,78205.0,0.09216]
[1769886846691,0.12785925,78216.0,78205.0,0.09216]
[1769886846892,0.09216,78232.0,78205.0,0.09216]
[1769886847096,0.11842732,78231.0,78206.0,0.27246566]
[1769886847295,0.11842732,78230.0,78207.0,0.012805]
[1769886847495,0.12784699,78231.0,78207.0,0.012805]
[1769886847693,0.25248766,78258.0,78219.0,0.27246566]
[1769886847893,0.11773792,78257.0,78221.0,0.27246566]
[1769886848092,0.52569488,78261.0,78221.0,0.27246566]
[1769886848093,0.12784699,78247.0,78222.0,0.09216]
[1769886848294,0.09216,78260.0,78222.0,0.09216]
[1769886848490,0.1202629,78259.0,78222.0,0.09216]
[1769886848698,0.12781349,78255.0,78222.0,0.09216]
[1769886848901,0.1202629,78254.0,78222.0,0.09216]
[1769886849099,0.09216,78260.0,78210.0,0.27246566]
[1769886849100,0.27320722,78252.0,78210.0,0.27246566]
[1769886849294,0.1202629,78251.0,78210.0,0.27246566]
[1769886849494,0.39347012,78250.0,78210.0,0.27246566]
[1769886849695,0.1202629,78249.0,78210.0,0.27246566]
[1769886849896,0.1202629,78248.0,78210.0,0.27246566]
[1769886850096,0.39347012,78247.0,78210.0,0.27246566]
[1769886850296,0.1202629,78246.0,78210.0,0.27246566]
[1769886850498,0.28600622,78244.0,78208.0,0.09216]
[1769886850696,0.27320722,78238.0,78208.0,0.09216]
[1769886850997,0.27320722,78232.0,78208.0,0.09216]
[1769886851201,0.0128,78233.0,78208.0,0.09216]
[1769886851202,0.27320722,78230.0,78208.0,0.09216]
[1769886851403,0.27320722,78228.0,78208.0,0.09216]
[1769886851604,0.27320722,78226.0,78208.0,0.09216]
[1769886851902,0.1202629,78225.0,78208.0,0.09216]
[1769886852103,0.1202629,78224.0,78208.0,0.09216]
[1769886852299,0.1202629,78223.0,78208.0,0.09216]
[1769886852501,0.1202629,78222.0,78208.0,0.09216]
[1769886852702,0.1202629,78221.0,78208.0,0.09216]
[1769886852901,0.1202629,78220.0,78208.0,0.09216]
[1769886853202,0.1202629,78219.0,78208.0,0.09216]
[1769886853402,0.12785434,78219.0,78208.0,0.09216]
[1769886853798,0.09216,78231.0,78208.0,0.09216]
[1769886853997,0.12785434,78218.0,78208.0,0.09216]
[1769886854198,0.39017532,78230.0,78208.0,0.09216]
[1769886854199,0.27320722,78230.0,78208.0,0.09216]
[1769886854400,0.27320722,78222.0,78194.0,0.00010461]
[1769886854694,0.11696997,78221.0,78194.0,0.27257027]
[1769886854898,0.11696997,78220.0,78194.0,0.27257027]
[1769886855106,0.11696997,78219.0,78194.0,0.27257027]
[1769886855399,0.27320722,78235.0,78194.0,0.27257027]
[1769886855604,0.12786579,78218.0,78194.0,0.27257027]
[1769886855904,0.09216,78241.0,78199.0,0.27246566]
[1769886856105,0.12786579,78233.0,78201.0,0.27246566]
[1769886856305,0.11576148,78232.0,78201.0,0.27246566]
[1769886856509,0.11576148,78231.0,78201.0,0.27246566]
[1769886857105,0.12784454,78230.0,78201.0,0.27246566]
[1769886857302,0.11585711,78229.0,78201.0,0.27246566]
[1769886857604,0.09216,78241.0,78201.0,0.27246566]
[1769886857801,0.11586021,78240.0,78201.0,0.27246566]
[1769886858004,0.11586021,78239.0,78210.0,0.27246566]
[1769886858299,0.09216,78257.0,78195.0,0.064035]
[1769886858300,0.09216,78257.0,78212.0,0.27246566]
[1769886858502,0.11588681,78256.0,78218.0,0.27246566]
[1769886858700,0.3372,78264.0,78213.0,0.09216]
[1769886858701,0.12783718,78252.0,78224.0,0.27246566]
[1769886858900,0.11588681,78251.0,78227.0,0.27246566]
[1769886859096,0.11588681,78250.0,78228.0,0.09216]
[1769886859299,0.27320722,78249.0,78217.0,0.27246566]
[1769886859497,0.27320722,78249.0,78213.0,0.09216]
[1769886859797,0.27320722,78247.0,78213.0,0.09216]
[1769886859999,0.27320722,78239.0,78195.0,0.09216]
[1769886860205,0.27320722,78237.0,78195.0,0.09216]
[1769886860407,0.27320722,78235.0,78195.0,0.09216]
[1769886860607,0.27320722,78233.0,78195.0,0.09216]
[1769886860806,0.11556562,78234.0,78195.0,0.09216]
[1769886860807,0.11556562,78232.0,78199.0,0.27246566]
[1769886861002,0.11556562,78231.0,78199.0,0.27246566]
[1769886861309,0.25248766,78252.0,78207.0,0.27246566]
[1769886861509,0.12785271,78230.0,78209.0,0.27246566]
[1769886861701,0.27320722,78246.0,78209.0,0.27246566]
[1769886861896,0.27320722,78244.0,78209.0,0.27246566]
[1769886862100,0.12785271,78229.0,78210.0,0.09216]
[1769886862305,0.27320722,78239.0,78210.0,0.09216]
[1769886862501,0.27320722,78237.0,78210.0,0.09216]
[1769886862707,0.38878761,78236.0,78210.0,0.09216]
[1769886863010,0.27320722,78234.0,78210.0,0.09216]
[1769886863207,0.11558039,78233.0,78210.0,0.09216]
[1769886863609,0.12784127,78232.0,78210.0,0.09216]
[1769886863798,0.11558039,78231.0,78210.0,0.09216]
[1769886864406,0.24342166,78230.0,78210.0,0.09216]
[1769886864602,0.11558039,78229.0,78210.0,0.09216]
[1769886864802,0.09216,78240.0,78210.0,0.09216]
[1769886865003,0.12784372,78228.0,78210.0,0.09216]
[1769886865307,0.09216,78240.0,78210.0,0.09216]
[1769886865507,0.11564972,78239.0,78210.0,0.09216]
[1769886865703,0.12784617,78227.0,78210.0,0.09216]
[1769886865903,0.09216,78240.0,78210.0,0.09216]
[1769886866105,0.11565311,78239.0,78210.0,0.09216]
[1769886866305,0.12784617,78237.0,78210.0,0.09216]
[1769886866502,0.11565311,78236.0,78210.0,0.09216]
[1769886866703,0.11565311,78235.0,78210.0,0.09216]
[1769886867106,0.27320722,78234.0,78210.0,0.09216]
[1769886867307,0.27320722,78232.0,78210.0,0.09216]
[1769886867507,0.12783718,78234.0,78195.0,0.3372]
[1769886867508,0.27320722,78230.0,78195.0,0.3372]
[1769886867701,0.27320722,78228.0,78195.0,0.3372]
[1769886867901,0.27320722,78226.0,78194.0,0.09226461]
[1769886868105,0.12784127,78229.0,78194.0,0.00010461]
[1769886868106,0.27320722,78216.0,78194.0,0.00010461]
[1769886868301,0.11565311,78215.0,78194.0,0.00010461]
[1769886868506,0.24352217,78215.0,78194.0,0.00010461]
[1769886868709,0.11565311,78214.0,78194.0,0.00010461]
[1769886869113,0.25248766,78225.0,78195.0,0.27246566]
[1769886869310,0.25248766,78246.0,78203.0,0.27246566]
[1769886869514,0.27320722,78250.0,78207.0,0.27246566]
[1769886869707,0.12786088,78231.0,78207.0,0.27246566]
[1769886869906,0.52569488,78248.0,78207.0,0.27246566]
[1769886870107,0.27320722,78246.0,78207.0,0.27246566]
[1769886870510,0.09216,78255.0,78214.0,0.27246566]
[1769886870707,0.12783391,78245.0,78234.0,0.00174896]
[1769886871108,0.27320722,78248.0,78205.0,0.27246566]
[1769886871415,0.27320722,78243.0,78207.0,0.32]
[1769886871818,0.27320722,78241.0,78207.0,0.32]
[1769886872109,0.27320722,78240.0,78207.0,0.32]
[1769886872512,0.27320722,78239.0,78207.0,0.32]
[1769886873109,0.27320722,78236.0,78207.0,0.32]
[1769886873716,0.26528566,78237.0,78207.0,0.32]
[1769886873717,0.27320722,78234.0,78207.0,0.32]
[1769886874320,0.12784208,78233.0,78207.0,0.32]
[1769886876616,0.25248766,78249.0,78219.0,0.27246566]
[1769886876816,0.25248766,78259.0,78221.0,0.27246566]
[1769886877013,0.12784454,78242.0,78221.0,0.27246566]
[1769886877218,0.29372989,78246.0,78212.0,0.012803]
[1769886877516,0.29372989,78246.0,78213.0,0.3372]
[1769886877716,0.012794,78265.0,78216.0,0.28211718]
[1769886878015,0.12782574,78245.0,78217.0,0.28211718]
[1769886878215,0.12607678,78245.0,78223.0,0.28211718]
[1769886878412,0.09216,78264.0,78225.0,0.28211718]
[1769886878718,0.21998656,78264.0,78227.0,0.28211718]
[1769886879110,0.29372989,78263.0,78227.0,0.28211718]
[1769886879510,0.35136843,78270.0,78231.0,0.28211718]
[1769886879511,0.25248766,78269.0,78231.0,0.28211718]
[1769886879717,0.12780369,78262.0,78232.0,0.3372]
[1769886880014,0.30789832,78270.0,78232.0,0.3372]
[1769886880015,0.29372989,78268.0,78232.0,0.3372]
[1769886880720,0.29372989,78266.0,78232.0,0.3372]
[1769886881017,0.29165433,78264.0,78232.0,0.3372]
[1769886881818,0.12779879,78263.0,78232.0,0.3372]
[1769886882011,0.12779879,78263.0,78233.0,0.28376325]
[1769886882410,0.01416843,78270.0,78233.0,0.28376325]
[1769886882614,0.12779879,78262.0,78233.0,0.28376325]
[1769886883021,0.0135904,78270.0,78233.0,0.28376325]
[1769886883317,0.12779879,78272.0,78237.0,0.28376325]
[1769886883515,0.01406976,78278.0,78239.0,0.28376325]
[1769886883723,0.01406976,78278.0,78238.0,0.09216]
[1769886883724,0.01406976,78278.0,78241.0,0.28376325]
[1769886884216,0.12779307,78277.0,78241.0,0.28376325]
[1769886884618,0.12779307,78277.0,78250.0,0.26580656]
[1769886884814,0.29165433,78277.0,78233.0,0.012799]
[1769886885019,0.29165433,78275.0,78234.0,0.42932]
[1769886885414,0.29165433,78273.0,78234.0,0.42932]
[1769886885614,0.29165433,78271.0,78231.0,0.28376325]
[1769886885819,0.29165433,78269.0,78231.0,0.28376325]
[1769886886021,0.29165433,78267.0,78240.0,0.26580656]
[1769886886216,0.29165433,78265.0,78240.0,0.26580656]
[1769886886425,0.29165433,78263.0,78240.0,0.26580656]
[1769886886724,0.40541658,78262.0,78240.0,0.26580656]
[1769886886920,0.11376225,78261.0,78240.0,0.26580656]
[1769886887121,0.29165433,78271.0,78240.0,0.26580656]
[1769886887321,0.12778981,78261.0,78240.0,0.26580656]
[1769886887517,0.29165433,78260.0,78232.0,0.09216]
[1769886888316,0.12778654,78259.0,78232.0,0.09216]
[1769886888624,0.29165433,78254.0,78212.0,0.09216]
[1769886888826,0.29165433,78252.0,78212.0,0.09216]
[1769886889322,0.29165433,78238.0,78189.0,0.15274574]
[1769886889524,0.29165433,78238.0,78190.0,0.26580656]
[1769886889525,0.29165433,78227.0,78190.0,0.26580656]
[1769886889721,0.29165433,78223.0,78184.0,0.33712]
[1769886889920,0.29165433,78223.0,78193.0,0.09216]
[1769886890424,0.12782493,78222.0,78200.0,0.26580656]
[1769886892020,0.29165433,78233.0,78201.0,0.28376325]
[1769886892422,0.09216,78237.0,78201.0,0.28376325]
[1769886892423,0.12785925,78232.0,78202.0,0.33716]
[1769886892625,0.12785925,78232.0,78203.0,0.28376325]
[1769886892913,0.09216,78237.0,78203.0,0.28376325]
[1769886893115,0.12784944,78231.0,78203.0,0.28376325]
[1769886893320,0.09216,78237.0,78203.0,0.28376325]
[1769886893725,0.09216,78237.0,78220.0,0.26580656]
[1769886893921,0.12784944,78236.0,78220.0,0.26580656]
[1769886894115,0.42932,78247.0,78220.0,0.26580656]
[1769886894318,0.29165433,78253.0,78221.0,0.28376325]
[1769886894519,0.09216,78257.0,78221.0,0.28376325]
[1769886894820,0.12782248,78256.0,78240.0,0.54956981]
[1769886895027,0.38381433,78277.0,78241.0,0.71308325]
[1769886895421,0.41947681,78276.0,78241.0,0.71308325]
[1769886896020,0.12782248,78276.0,78242.0,0.28376325]
[1769886896228,0.12782248,78276.0,78260.0,0.26580656]
[1769886897128,0.01348201,78284.0,78260.0,0.26580656]
[1769886897323,0.12778083,78275.0,78257.0,0.33716]
[1769886897719,0.25248766,78303.0,78258.0,0.28376325]
[1769886897924,0.02666753,78308.0,78280.0,0.26580656]
[1769886898228,0.1277596,78289.0,78274.0,0.09216]
[1769886898429,0.29165433,78305.0,78274.0,0.09216]
[1769886898729,0.12539562,78288.0,78274.0,0.37592325]
[1769886898925,0.30444033,78311.0,78274.0,0.37592325]
[1769886899322,0.30444033,78311.0,78274.0,0.09216]
[1769886899323,0.1277237,78287.0,78274.0,0.09216]
[1769886899529,0.29165433,78304.0,78274.0,0.09216]
[1769886899724,0.12772615,78286.0,78274.0,0.09216]
[1769886900028,0.09216,78298.0,78274.0,0.09216]
[1769886900236,0.29165433,78295.0,78274.0,0.09216]
[1769886900428,0.09216,78298.0,78274.0,0.09216]
[1769886900628,0.01383772,78308.0,78280.0,0.26580656]
[1769886900824,0.29165433,78294.0,78255.0,0.09216]
[1769886901021,0.29165433,78294.0,78256.0,0.28376325]
[1769886901228,0.25248766,78315.0,78285.0,0.28376325]
[1769886901423,0.67046843,78328.0,78286.0,0.09216]
[1769886901424,0.29165433,78320.0,78286.0,0.09216]
[1769886901630,0.12775471,78296.0,78272.0,0.28376325]
[1769886901835,0.012788,78303.0,78272.0,0.28376325]
[1769886902026,0.09216,78309.0,78272.0,0.28376325]
[1769886902027,0.30444133,78308.0,78272.0,0.28376325]
[1769886902228,0.29165433,78305.0,78271.0,0.09216]
[1769886902422,0.29165433,78303.0,78271.0,0.09216]
[1769886902936,0.30444233,78303.0,78271.0,0.09216]
[1769886903336,0.12773023,78302.0,78271.0,0.37592325]
[1769886903629,0.104947,78309.0,78272.0,0.28376325]
[1769886903835,0.09216,78309.0,78272.0,0.28376325]
[1769886904029,0.12773512,78301.0,78272.0,0.28376325]
[1769886904333,0.09216,78309.0,78273.0,0.29655525]
[1769886904532,0.12773512,78300.0,78273.0,0.29655525]
[1769886904733,0.29165433,78308.0,78273.0,0.28376325]
[1769886904937,0.11349364,78307.0,78273.0,0.28376325]
[1769886905129,0.40514797,78306.0,78273.0,0.28376325]
[1769886905330,0.11349364,78305.0,78273.0,0.28376325]
[1769886905538,0.24122468,78305.0,78273.0,0.28376325]
[1769886905736,0.29165433,78295.0,78251.0,0.28376325]
[1769886905934,0.29165433,78295.0,78251.0,0.29655925]
[1769886906135,0.29165433,78295.0,78252.0,0.09212]
[1769886906334,0.12773104,78294.0,78253.0,0.29655925]
[1769886906736,0.12773104,78294.0,78252.0,0.09212]
[1769886906737,0.29165433,78286.0,78252.0,0.09212]
[1769886906935,0.30444533,78284.0,78252.0,0.09212]
[1769886907336,0.12775715,78283.0,78252.0,0.09212]
[1769886907633,0.28491222,78277.0,78252.0,0.09212]
[1769886907837,0.28491222,78271.0,78238.0,0.09212]
[1769886908033,0.11575786,78270.0,78238.0,0.09212]
[1769886908236,0.11575786,78269.0,78238.0,0.09212]
[1769886908428,0.28491222,78267.0,78238.0,0.09212]
[1769886908739,0.28491222,78258.0,78222.0,0.09212]
[1769886909038,0.28491222,78258.0,78211.0,0.27050871]
[1769886909039,0.28491222,78245.0,78218.0,0.09212]
[1769886909338,0.28491222,78243.0,78218.0,0.09212]
[1769886909637,0.40067008,78242.0,78218.0,0.09212]
[1769886909825,0.28491222,78240.0,78218.0,0.09212]
[1769886910026,0.11575786,78239.0,78218.0,0.09212]
[1769886910230,0.09212,78243.0,78219.0,0.27050871]
[1769886910434,0.12782574,78238.0,78219.0,0.27050871]
[1769886910733,0.11553804,78237.0,78218.0,0.09212]
[1769886910937,0.11553804,78236.0,78218.0,0.09212]
[1769886911237,0.37703222,78240.0,78200.0,0.27050871]
[1769886911238,0.11553804,78235.0,78200.0,0.27050871]
[1769886911534,0.11553804,78235.0,78199.0,0.104925]
[1769886911535,0.12782656,78235.0,78208.0,0.27050871]
[1769886911738,0.09212,78255.0,78208.0,0.27050871]
[1769886912135,0.12784862,78252.0,78208.0,0.27050871]
[1769886912334,0.28491222,78251.0,78175.0,0.15207046]
[1769886912535,0.28491222,78195.0,78157.0,0.27050871]
[1769886912842,0.28491222,78189.0,78147.0,0.33708]
[1769886913137,0.4292,78194.0,78147.0,0.33708]
[1769886913138,0.28491222,78181.0,78147.0,0.33708]
[1769886913435,0.09212,78188.0,78147.0,0.33708]
[1769886913436,0.29772022,78180.0,78147.0,0.33708]
[1769886913634,0.28491222,78178.0,78142.0,0.02867576]
[1769886913838,0.29772022,78177.0,78146.0,0.02867576]
[1769886914031,0.29772022,78177.0,78150.0,0.02867576]
[1769886914233,0.12804074,78176.0,78148.0,0.02867576]
[1769886914737,0.12804074,78176.0,78152.0,0.02867576]
[1769886914939,0.12804074,78176.0,78149.0,0.02867576]
[1769886915140,0.12804074,78176.0,78148.0,0.02867576]
[1769886915636,0.28491222,78174.0,78141.0,0.09212]
[1769886915940,0.28491222,78172.0,78142.0,0.02867576]
[1769886916236,0.00010461,78171.0,78146.0,0.02867576]
[1769886916537,0.00010461,78171.0,78145.0,0.02867576]
[1769886916736,0.00010461,78170.0,78142.0,0.02867576]
[1769886916935,0.00010461,78169.0,78142.0,0.02867576]
[1769886917138,0.28501683,78169.0,78143.0,0.02867576]
[1769886917338,0.41295115,78168.0,78143.0,0.02867576]
[1769886917539,0.00010461,78167.0,78134.0,0.29285386]
[1769886917840,0.00010461,78167.0,78140.0,0.02867576]
[1769886918037,0.12794922,78166.0,78138.0,0.02867576]
[1769886918237,0.0001026,78165.0,78143.0,0.02867576]
[1769886918438,0.0001026,78165.0,78142.0,0.02867576]
[1769886918634,0.0001026,78165.0,78143.0,0.02867576]
[1769886918841,0.1279525,78164.0,78143.0,0.02867576]
[1769886919041,0.12391223,78164.0,78152.0,0.02867576]
[1769886919238,0.12391223,78164.0,78149.0,0.02867576]
[1769886919439,0.12391223,78164.0,78150.0,0.02867576]
[1769886919948,0.012811,78159.0,78113.0,0.27050871]
[1769886920140,0.09230461,78158.0,78115.0,0.27050871]
[1769886920341,0.28491222,78161.0,78115.0,0.27050871]
[1769886920542,0.12794841,78157.0,78117.0,0.27050871]
[1769886920740,9.059e-05,78160.0,78119.0,0.27050871]
[1769886920940,9.059e-05,78160.0,78121.0,0.012817]
[1769886921136,0.12798116,78156.0,78122.0,0.27050871]
[1769886921338,0.00010461,78155.0,78122.0,0.27050871]
[1769886921540,0.28491222,78152.0,78106.0,0.00012734]
[1769886921742,0.28491222,78141.0,78106.0,0.00012734]
[1769886921946,0.28491222,78139.0,78106.0,0.00012734]
[1769886922241,0.00010461,78140.0,78106.0,0.00012734]
[1769886922242,0.28491222,78137.0,78106.0,0.00012734]
[1769886922446,0.28491222,78124.0,78082.0,0.27050871]
[1769886922743,0.28491222,78122.0,78079.0,0.0922]
[1769886922943,0.28491222,78120.0,78079.0,0.0922]
[1769886923150,0.12800573,78121.0,78080.0,0.27050871]
[1769886923539,0.00012134,78120.0,78083.0,0.27050871]
[1769886923745,0.00012134,78120.0,78087.0,0.27050871]
[1769886924343,0.12804015,78119.0,78087.0,0.27050871]
[1769886924644,0.12804015,78119.0,78087.0,0.27035871]
[1769886924844,0.28491222,78118.0,78079.0,0.0922]
[1769886925045,0.00010675,78117.0,78079.0,0.0922]
[1769886925243,0.00014892,78116.0,78079.0,0.0922]
[1769886925555,0.00016199,78115.0,78079.0,0.0922]
[1769886925851,0.12820706,78115.0,78079.0,0.0922]
[1769886926239,0.012815,78138.0,78079.0,0.0922]
[1769886926440,0.012814,78145.0,78079.0,0.0922]
[1769886926639,0.12803113,78132.0,78098.0,0.27050871]
[1769886926845,0.12803113,78132.0,78100.0,0.27050871]
[1769886927148,0.09224,78140.0,78100.0,0.27050871]
[1769886927349,0.12803113,78131.0,78100.0,0.27050871]
[1769886927546,0.00010417,78130.0,78100.0,0.27045871]
[1769886927745,5.417e-05,78130.0,78100.0,0.27045871]
[1769886927946,5.417e-05,78130.0,78101.0,0.012821]
[1769886928145,5.417e-05,78130.0,78102.0,0.33744]
[1769886928346,0.12800819,78129.0,78109.0,0.012819]
[1769886928752,5.417e-05,78130.0,78108.0,0.01282]
[1769886929348,5.417e-05,78130.0,78102.0,0.350261]
[1769886929349,0.12801474,78129.0,78102.0,0.350261]
[1769886929544,5.417e-05,78130.0,78103.0,0.27050871]
[1769886929750,0.24625539,78206.0,78103.0,0.27050871]
[1769886929751,0.28491222,78182.0,78123.0,0.27050871]
[1769886929945,0.28491222,78182.0,78104.0,0.064104]
[1769886929946,0.012806,78192.0,78127.0,0.27050871]
[1769886930152,0.12800983,78177.0,78134.0,0.27050871]
[1769886930352,0.09224,78186.0,78141.0,0.27050871]
[1769886931160,0.28491222,78150.0,78109.0,0.00014622]
[1769886931455,0.28491222,78148.0,78110.0,0.27050871]
[1769886932051,0.28491222,78163.0,78114.0,0.27050871]
[1769886932254,0.07768759,78192.0,78109.0,0.33762622]
[1769886932255,0.12799262,78147.0,78118.0,0.27050871]
[1769886932451,0.28491222,78170.0,78121.0,0.27050871]
[1769886933050,0.28491222,78170.0,78129.0,0.28332471]
[1769886933250,0.09224,78169.0,78131.0,0.27050871]
[1769886933449,0.22022771,78169.0,78131.0,0.27050871]
[1769886934054,0.12798771,78169.0,78136.0,0.27050871]
[1769886934249,0.12798771,78169.0,78138.0,0.27050871]
[1769886934449,0.28491222,78178.0,78138.0,0.27050871]
[1769886934652,0.41286554,78178.0,78138.0,0.27050871]
[1769886934852,0.28491222,78177.0,78137.0,0.09224]
[1769886935059,0.28491222,78171.0,78137.0,0.09224]
[1769886935761,0.28491222,78169.0,78137.0,0.09224]
[1769886935953,0.1279525,78170.0,78137.0,0.09224]
[1769886935954,0.1279525,78170.0,78138.0,0.27050871]
[1769886936156,0.28491222,78191.0,78146.0,0.27050871]
[1769886936356,0.012805,78197.0,78137.0,0.09224]
[1769886936357,0.1279525,78169.0,78137.0,0.09224]
[1769886936657,0.28491222,78175.0,78137.0,0.09224]
[1769886937251,0.28491222,78175.0,78138.0,0.28136138]
[1769886937460,0.12792876,78174.0,78138.0,0.28136138]
[1769886937957,0.29642838,78210.0,78152.0,0.28136138]
[1769886938257,0.29642838,78210.0,78137.0,0.09224]
[1769886938258,0.12794841,78185.0,78157.0,0.28136138]
[1769886938454,0.12794841,78185.0,78159.0,0.28136138]
[1769886938649,0.29642838,78204.0,78159.0,0.28136138]
[1769886938847,0.29642838,78204.0,78158.0,0.09224]
[1769886938848,0.12792467,78203.0,78168.0,0.28136138]
[1769886939156,0.29642838,78215.0,78168.0,0.28136138]
[1769886939358,0.29642838,78209.0,78168.0,0.28136138]
[1769886939658,0.29637838,78209.0,78168.0,0.28136138]
[1769886940060,0.12789441,78208.0,78170.0,0.29417138]
[1769886940260,0.12789441,78208.0,78171.0,0.61884138]
[1769886940853,0.12789441,78208.0,78171.0,0.33748]
[1769886941162,0.09224,78213.0,78171.0,0.33748]
[1769886941355,0.12789441,78210.0,78171.0,0.33748]
[1769886941555,0.09224,78213.0,78158.0,0.09224]
[1769886941556,0.29730112,78203.0,78158.0,0.09224]
[1769886942152,0.29730112,78197.0,78158.0,0.09224]
[1769886942365,0.29730112,78195.0,78158.0,0.09224]
[1769886942853,0.29730112,78193.0,78158.0,0.09224]
[1769886943559,0.12791404,78192.0,78158.0,0.09224]
[1769886943756,0.12791404,78192.0,78159.0,0.28451746]
[1769886943956,0.12791404,78192.0,78161.0,0.28451746]
[1769886944268,0.09224,78196.0,78163.0,0.28451746]
[1769886944453,0.12791731,78195.0,78163.0,0.28451746]
[1769886944767,0.29730112,78195.0,78146.0,0.012813]
[1769886944957,0.29730112,78190.0,78144.0,0.3374]
[1769886945160,0.012806,78191.0,78144.0,0.3374]
[1769886945161,0.29730112,78187.0,78144.0,0.3374]
[1769886945367,0.09224,78196.0,78144.0,0.3374]
[1769886945368,0.29730112,78184.0,78144.0,0.3374]
[1769886946362,0.12793367,78183.0,78145.0,0.28451746]
[1769886946554,0.12793367,78183.0,78157.0,0.28451746]
[1769886946759,0.29730112,78199.0,78155.0,0.012812]
[1769886946966,0.29730112,78181.0,78146.0,0.28451746]
[1769886947167,0.29730112,78181.0,78144.0,0.3374]
[1769886947559,0.09224,78187.0,78144.0,0.3374]
[1769886947560,0.29730112,78179.0,78144.0,0.3374]
[1769886948163,0.29730112,78177.0,78144.0,0.3374]
[1769886948355,0.29730112,78177.0,78142.0,0.09224]
[1769886948761,0.29730112,78175.0,78142.0,0.09224]
[1769886948964,0.12794186,78176.0,78143.0,0.28451746]
[1769886949169,0.31010812,78184.0,78143.0,0.28451746]
[1769886949367,0.12794186,78175.0,78142.0,0.09224]
[1769886949669,0.29730112,78174.0,78142.0,0.09224]
[1769886949865,0.42524625,78174.0,78142.0,0.09224]
[1769886950164,0.29730112,78174.0,78142.0,0.09224]
[1769886950560,0.12794513,78173.0,78142.0,0.09224]
[1769886950761,0.29730112,78172.0,78142.0,0.09224]
[1769886951156,0.38954112,78172.0,78142.0,0.09224]
[1769886951361,0.42524707,78171.0,78142.0,0.09224]
[1769886951557,0.12794595,78171.0,78144.0,0.012814]
[1769886951756,0.12794595,78171.0,78145.0,0.28451746]
[1769886951963,0.24643565,78206.0,78142.0,0.09224]
[1769886951964,0.29730112,78184.0,78142.0,0.09224]
[1769886952166,0.29730112,78182.0,78142.0,0.09224]
[1769886952661,0.29730112,78180.0,78142.0,0.09224]
[1769886953261,0.29730112,78178.0,78142.0,0.09224]
[1769886953665,0.29730112,78178.0,78143.0,0.012814]
[1769886953861,0.12794268,78177.0,78144.0,0.28451746]